Cogmind - Beta 17.1 @@@ ROGUE MODE // 2026.09.19 @ 17:35:06 Player: Figgis Result: Destroyed by Y-72 Warden with Quantum Rifle Performance ------------- Evolutions (7) 3500 Regions Visited (16) 3200 Robots Destroyed (50) 250 Value Destroyed (1513) 1513 Prototype IDs (16) 320 Alien Tech Used (3) 600 Bonus (800) 800 TOTAL SCORE: 10183 Bonus ------- Registered with UFD 300 Met Optimus in HQ 500 Cogmind --------- Core Integrity 0/1300 Matter 290/300 Energy 100/100 System Corruption 12% Temperature Cool (9) Movement Core (50) Location -3/Protoforge Parts ------- > --- POWER (2) -------- (None) > --- PROPULSION (8) --- (None) > --- UTILITY (8) ------ (None) > --- WEAPON (3) ------- (None) > --- INVENTORY (5) ---- Subatomic Replicator Peak State ------------ > --- POWER ------------ Particle Reactor Micro Antimatter Reactor > --- PROPULSION ------- Field Propulsion Drive Q-thruster Electron Diverter Improved Diametric Drive Impulse Thruster Array Impulse Thruster Array > --- UTILITY ---------- Advanced ECM Suite Cloaking Device Experimental Core Shielding Advanced Hacking Suite Advanced System Shield > --- WEAPON ----------- Core Stripper Force Lance > --- INVENTORY -------- Subatomic Replicator Vortex Trap [Rating: 146] Favorites ----------- Power Light Ion Engine Engine Light Ion Engine Power Core Light Nuclear Core Reactor Particle Reactor Propulsion Improved Treads Treads Improved Treads Flight Unit Nuclear Pulse Thruster Utility Terrain Scanner Device Terrain Scanner Storage Large Storage Unit Processor Advanced Terrain Scan Processor Hackware Advanced Hacking Suite Protection Improved Medium Armor Plating Weapon Assault Rifle Energy Gun Small Laser Energy Cannon Phase Cannon Ballistic Gun Assault Rifle Launcher EMP Blaster Impact Weapon Heavy Hammer Slashing Weapon Ripper Piercing Weapon Heavy Pick Build | -11 -10 -10 -9 -9 -9 -9 -6 -5 -5 -5 -4 -4 -4 -3 -3 -3 ------- Run | Yrd Mat Min Mat Sto Rec Scr Fac Fac Upp Upp Fac Was Fac Res Qua Frg Slots Evolved 14 | . . . 2 . . . 6 2 . . 2 . . 2 . . Power 1 | . . . . . . . 1 . . . . . . . . . Propulsion 6 | . . . 1 . . . 2 1 . . 1 . . 1 . . Utility 6 | . . . 1 . . . 3 1 . . . . . 1 . . Weapon 1 | . . . . . . . . . . . 1 . . . . . Parts Attached 104 | 4 7 1 6 9 3 7 24 5 7 . 5 . 3 20 3 . Power 11 | . 1 . 1 1 . 1 2 . 1 . 1 . . 3 . . Engine 4 | . 1 . . 1 . 1 . . 1 . . . . . . . Core 2 | . . . 1 . . . 1 . . . . . . . . . Reactor 5 | . . . . . . . 1 . . . 1 . . 3 . . Propulsion 41 | 2 . . 2 3 2 4 13 3 . . 2 . 2 6 2 . Treads 13 | 2 . . 2 3 2 4 . . . . . . . . . . Leg . | . . . . . . . . . . . . . . . . . Wheel . | . . . . . . . . . . . . . . . . . Hover . | . . . . . . . . . . . . . . . . . Flight 28 | . . . . . . . 13 3 . . 2 . 2 6 2 . Utility 31 | . 4 . 1 . . 2 7 2 4 . 1 . 1 9 . . Device 15 | . 1 . 1 . . . 3 . 2 . 1 . 1 6 . . Storage 2 | . 2 . . . . . . . . . . . . . . . Processor 3 | . . . . . . . 2 . . . . . . 1 . . Hackware 5 | . . . . . . . . 2 2 . . . . 1 . . Protection 6 | . 1 . . . . 2 2 . . . . . . 1 . . Artifact . | . . . . . . . . . . . . . . . . . Weapon 21 | 2 2 1 2 5 1 . 2 . 2 . 1 . . 2 1 . Energy Gun 1 | 1 . . . . . . . . . . . . . . . . Energy Cannon 1 | . . . . . . . 1 . . . . . . . . . Ballistic Gun 10 | 1 2 1 2 3 1 . . . . . . . . . . . Ballistic Cannon . | . . . . . . . . . . . . . . . . . Launcher 1 | . . . . 1 . . . . . . . . . . . . Special Weapon . | . . . . . . . . . . . . . . . . . Impact Weapon 2 | . . . . 1 . . . . . . . . . . 1 . Slashing Weapon 3 | . . . . . . . . . 2 . 1 . . . . . Piercing Weapon 3 | . . . . . . . 1 . . . . . . 2 . . Special Melee Weapon . | . . . . . . . . . . . . . . . . . Unidentified Prototypes 13 | . . . . 2 . . 2 2 . . . . . 4 3 . Parts Lost 41 | . . . 1 1 2 . 1 9 . . 2 . 1 7 5 12 Power 6 | . . . . . . . . 2 . . 1 . . 1 1 1 Propulsion 18 | . . . 1 . 1 . 1 3 . . . . 1 4 2 5 Utility 13 | . . . . 1 . . . 4 . . . . . 2 2 4 Weapon 4 | . . . . . 1 . . . . . 1 . . . . 2 Highest Loss Streak 9 | . . . 1 1 1 . 1 9 . . 2 . 1 4 4 7 To Critical Strikes . | . . . . . . . . . . . . . . . . . Average Backups 10 | 2 7 12 13 14 13 14 3 2 3 4 3 4 3 2 . 1 Power 1 | 1 1 2 2 2 2 1 . . . . . . . . . . Propulsion 2 | . . 2 3 5 3 5 . 1 . . . . . 1 . . Utility 1 | . . 3 2 2 2 1 . . 1 2 2 2 2 . . . Weapon 3 | 1 3 5 5 5 5 4 1 1 1 2 1 2 1 . . . Tool/Special . | . . . . . . . . . . . . . . . . . Unused Backups 20 | . . 1 4 4 . 3 4 1 . . . . 1 1 . 1 Power 1 | . . . . . . 1 . . . . . . . . . . Propulsion 6 | . . . 1 4 . . 1 . . . . . . . . . Utility 3 | . . . 1 . . 1 1 . . . . . . . . . Weapon 7 | . . . 2 . . 1 1 1 . . . . 1 1 . . Tool/Special 3 | . . 1 . . . . 1 . . . . . . . . 1 Average Slot Usage (%) 90 | . 96 100 98 97 87 97 84 93 64 82 79 84 82 81 63 32 Engine 8 | . 13 14 3 10 11 11 6 4 4 5 1 . . . . . Core 1 | . . . 7 . . . 4 4 . . . . . . . . Treads 23 | . 27 28 32 33 32 33 . . . . . . . . . . Flight 6 | . . . . . . . 32 33 23 23 27 31 30 28 24 13 Device 12 | . 6 14 21 20 11 11 14 20 7 17 15 15 14 18 9 4 Storage 8 | . 13 14 11 11 11 11 . . . . . . . . . . Hackware 1 | . . . . . . . . 6 9 17 15 15 15 9 7 3 Protection 3 | . 5 . . . . 8 5 1 . . . . . 1 4 2 Ballistic Gun 16 | . 22 28 22 17 17 22 1 . . . . . . . . . Impact Weapon 1 | . . . . 3 3 . 4 5 . . . . . . 2 1 Piercing Weapon 1 | . . . . . . . 4 5 5 5 1 . . 8 4 2 Peak Build Rating 146 | 4 8 9 15 19 17 27 66 79 78 78 91 91 97 140 146 124 Average Rating 32 | 1 7 8 13 18 16 24 46 74 63 78 85 91 91 126 125 67 On Entrance 52 | . 4 8 9 15 17 16 27 66 52 78 78 91 91 97 113 124 Avg Prop Armor Cover (%) 19 | 28 26 . . . . . . 11 5 . 16 . . . . 23 Naked Turns 21 | . . . . . . . . . . . . . . . . 21 Heaviest Build 60 | 3 30 28 33 36 35 42 27 27 20 20 30 30 31 60 47 29 Greatest Support 76 | 3 40 40 60 69 69 76 30 40 31 31 39 46 49 64 63 54 Greatest Overweight (x) 2 | . . . . 1 . . . . . . . . . 1 . 2 Average Overweight (x) . | . . . . . . . . . . . . . . . . . Largest Inventory Capacity 15 | 5 15 15 15 15 15 15 15 5 5 5 5 5 5 5 5 5 Average Capacity 12 | 5 13 15 15 15 15 15 5 5 5 5 5 5 5 5 5 5 Most Carried 15 | 5 14 14 15 15 15 15 14 5 5 5 5 5 5 5 5 1 Average Carried 10 | 3 7 12 13 14 13 14 4 4 4 5 4 5 4 4 1 1 Final Capacity 15 | 5 15 15 15 15 15 15 5 5 5 5 5 5 5 5 5 5 Final Carried 15 | 4 13 13 15 15 13 15 4 2 5 5 5 5 5 1 1 1 Class Distribution -------------------- 77% | Mutant 9% | Hacker-Sprinter 6% | Sprinter 3% | Infiltrator-Sprinter Dominant Class ---------------- Mutant | -10/Materials Mutant | -10/Mines Mutant | -9/Materials Mutant | -9/Storage Mutant | -9/Recycling Mutant | -9/Scraptown Sprinter | -6/Factory Hacker-Scout | -5/Factory Hacker-Sprinter | -5/Upper Caves Hacker-Sprinter | -5/Upper Caves Hacker-Sprinter | -4/Factory Hacker-Sprinter | -4/Waste Hacker-Sprinter | -4/Factory Hacker-Sprinter | -3/Research Hacker-Sprinter | -3/Quarantine Mutant | -3/Protoforge Resources | -11 -10 -10 -9 -9 -9 -9 -6 -5 -5 -5 -4 -4 -4 -3 -3 -3 ----------- Run | Yrd Mat Min Mat Sto Rec Scr Fac Fac Upp Upp Fac Was Fac Res Qua Frg Matter Collected 2275 | 240 295 309 219 348 129 70 78 61 217 . . . 65 216 . 28 Remotely . | . . . . . . . . . . . . . . . . . Salvage Created 2085 | . 505 287 338 510 100 . 20 61 264 . . . . . . . Parts 127 | . 32 21 25 35 4 . 3 5 2 . . . . . . . Haulers Intercepted 2 | . 2 . . . . . . . . . . . . . . . Recyclers Shooed . | . . . . . . . . . . . . . . . . . Parts Field Recycled . | . . . . . . . . . . . . . . . . . Retrieved Matter . | . . . . . . . . . . . . . . . . . Parts Self-Destructed 2 | . . . . . . . . . 2 . . . . . . . Prevented . | . . . . . . . . . . . . . . . . . Parts Restored . | . . . . . . . . . . . . . . . . . Kills | -11 -10 -10 -9 -9 -9 -9 -6 -5 -5 -5 -4 -4 -4 -3 -3 -3 ------- Run | Yrd Mat Min Mat Sto Rec Scr Fac Fac Upp Upp Fac Was Fac Res Qua Frg Combat Hostiles Destroyed 42 | . 10 10 7 13 2 . . . . . . . . . . . Guns 40 | . 10 10 7 11 2 . . . . . . . . . . . AOE 2 | . . . . 2 . . . . . . . . . . . . Classes Destroyed 6 | . 4 . 1 . . . . 1 . . . . . . . . Hauler 2 | . 2 . . . . . . . . . . . . . . . Operator 1 | . . . . . . . . 1 . . . . . . . . Watcher 5 | . 2 . . 1 . . 1 1 . . . . . . . . Swarmer 13 | . 3 6 . 4 . . . . . . . . . . . . Grunt 19 | . 7 4 3 5 . . . . . . . . . . . . Sentry 10 | . . . 4 4 2 . . . . . . . . . . . Best Kill Streak 4 | . 3 3 4 4 1 . 1 1 . . . . . . . . Combat Bots Only 4 | . 3 3 4 4 1 . . . . . . . . . . . Max Kills in Single Turn 2 | . 1 2 1 2 1 . 1 1 . . . . . . . . Gunslinging 1 | . . 1 . . . . . . . . . . . . . . Exploded 1 | . . . . 1 . . . . . . . . . . . . Melee . | . . . . . . . . . . . . . . . . . Uniques/NPCs Destroyed . | . . . . . . . . . . . . . . . . . Combat | -11 -10 -10 -9 -9 -9 -9 -6 -5 -5 -5 -4 -4 -4 -3 -3 -3 -------- Run | Yrd Mat Min Mat Sto Rec Scr Fac Fac Upp Upp Fac Was Fac Res Qua Frg Hostile Shots Fired 642 | . 47 30 39 80 34 . 49 69 3 . 12 . 37 52 18 172 Missed 271 | . 14 6 12 16 10 . 30 38 2 . 8 . 17 25 8 85 Hits 371 | . 33 24 27 64 24 . 19 31 1 . 4 . 20 27 10 87 Projectile 371 | . 33 24 27 64 24 . 19 31 1 . 4 . 20 27 10 87 Critical Strikes 18 | . 1 . . 3 1 . 1 1 . . 2 . 1 3 . 5 Actively Blocked 2 | . . . . . . . . . . . . . . 1 . 1 Damage Taken 6889 | . 396 260 377 834 352 . 308 527 19 . 120 . 318 903 303 2172 Core 2062 | . 42 56 53 219 16 . 61 121 . . 35 . 134 101 . 1224 Absorbed by Shields 82 | . . . . . . . . 16 . . . . 51 15 . . Redirected to Shielding 168 | . . . . . . . . 8 . . . . . 63 . 97 Regen/Repaired (Parts) 125 | . 60 . . . . . . . . . . . 65 . . . Core Remaining (%) 75 | 100 . 60 . . . 28 92 . . 87 . . 85 . . . Volleys Fired 153 | . 49 19 20 48 17 . . . . . . . . . . . Largest 2 | . 2 2 2 2 2 . . . . . . . . . . . Hottest 60 | . 60 40 43 56 46 . . . . . . . . . . . Shots Fired 281 | . 98 38 39 73 33 . . . . . . . . . . . Gun 277 | . 98 38 39 69 33 . . . . . . . . . . . Cannon . | . . . . . . . . . . . . . . . . . Launcher 4 | . . . . 4 . . . . . . . . . . . . Special . | . . . . . . . . . . . . . . . . . Kinetic 255 | . 76 38 39 69 33 . . . . . . . . . . . Thermal 22 | . 22 . . . . . . . . . . . . . . . Explosive . | . . . . . . . . . . . . . . . . . Electromagnetic 4 | . . . . 4 . . . . . . . . . . . . Robot Hit Streak 35 | . 18 9 10 35 13 . . . . . . . . . . . Robot Miss Streak 3 | . 3 3 1 2 2 . . . . . . . . . . . Penetration Max . | . . . . . . . . . . . . . . . . . Secondary Targets 5 | . . 4 1 . . . . . . . . . . . . . Max Gunslinging Chain 1 | . . 1 1 . . . . . . . . . . . . . Shots Hit Robots 224 | . 68 26 34 57 26 . 2 3 6 . . . . . 2 . Core Hits 82 | . 26 13 15 20 4 . 1 2 1 . . . . . . . Critical Kills 1 | . . . . . . . . 1 . . . . . . . . Critical Parts Destroyed . | . . . . . . . . . . . . . . . . . Critical Strikes 2 | . . . . . . . . 1 1 . . . . . . . Smash 1 | . . . . . . . . 1 . . . . . . . . Impale 1 | . . . . . . . . . 1 . . . . . . . Melee Attacks 65 | . . . . 7 . . 7 7 6 . 3 . 6 17 9 3 Impact 9 | . . . . 7 . . . 2 . . . . . . . . Slashing 9 | . . . . . . . . . . . 3 . 6 . . . Piercing 47 | . . . . . . . 7 5 6 . . . . 17 9 3 Sneak Attacks 1 | . . . . . . . . . . . . . . . 1 . Combat Hostiles . | . . . . . . . . . . . . . . . . . Follow-up Attacks 2 | . . . . . . . . 2 . . . . . . . . Damage Inflicted 3916 | . 856 359 486 1016 386 . 112 140 381 . . . . . 180 . Guns 2982 | . 856 359 486 895 386 . . . . . . . . . . . Cannons . | . . . . . . . . . . . . . . . . . Explosions 121 | . . . . 121 . . . . . . . . . . . . Melee 803 | . . . . . . . 112 130 381 . . . . . 180 . Ramming 10 | . . . . . . . . 10 . . . . . . . . Kinetic 2825 | . 699 359 486 895 386 . . . . . . . . . . . Thermal 157 | . 157 . . . . . . . . . . . . . . . Explosive . | . . . . . . . . . . . . . . . . . Electromagnetic 121 | . . . . 121 . . . . . . . . . . . . Impact 43 | . . . . . . . . 43 . . . . . . . . Slashing . | . . . . . . . . . . . . . . . . . Piercing 760 | . . . . . . . 112 87 381 . . . . . 180 . Highest Corruption 12 | . . . . . . . . 1 1 1 . . . 11 12 12 Average Corruption 6 | . . . . . . . . 1 1 1 . . . 7 11 12 Corruption Purged . | . . . . . . . . . . . . . . . . . Corruption Blocked . | . . . . . . . . . . . . . . . . . Effects 29 | . . . . . . . . . 2 . . . . 5 13 9 Message Errors 5 | . . . . . . . . . . . . . . . 4 1 Matter Fused 9 | . . . . . . . . . . . . . . 2 2 5 Heat Flow Errors 2 | . . . . . . . . . . . . . . . 2 . Energy Discharges 2 | . . . . . . . . . . . . . . . 1 1 Parts Rejected 1 | . . . . . . . . . . . . . . 1 . . Parts Fused 1 | . . . . . . . . . 1 . . . . . . . Data Loss (minor) 3 | . . . . . . . . . 1 . . . . . 1 1 Data Loss (major) 1 | . . . . . . . . . . . . . . 1 . . Misdirections 5 | . . . . . . . . . . . . . . 1 3 1 Overload Shots . | . . . . . . . . . . . . . . . . . Overflow Damage 180 | . . . . . . . 9 . 171 . . . . . . . Projectiles . | . . . . . . . . . . . . . . . . . Explosions . | . . . . . . . . . . . . . . . . . Melee 180 | . . . . . . . 9 . 171 . . . . . . . Knockbacks . | . . . . . . . . . . . . . . . . . Impact . | . . . . . . . . . . . . . . . . . Kinetic . | . . . . . . . . . . . . . . . . . Secondary . | . . . . . . . . . . . . . . . . . Self-Inflicted Damage 17 | . . . . 12 . . . 5 . . . . . . . . Shots 1 | . . . . 1 . . . . . . . . . . . . Rammed 1 | . . . . . . . . 1 . . . . . . . . Targets Rammed 1 | . . . . . . . . 1 . . . . . . . . Kicked . | . . . . . . . . . . . . . . . . . Crushed . | . . . . . . . . . . . . . . . . . Highest Temperature 302 | . 99 4 6 17 16 . 205 . . . 302 80 9 260 200 . Average Temperature 51 | . 27 2 2 11 10 . 39 . . . 130 50 5 101 104 . Received Heat Transfer 1711 | . 225 93 153 336 126 . 21 12 . . 379 . 24 42 9 291 Siege Activations . | . . . . . . . . . . . . . . . . . Martial Activations . | . . . . . . . . . . . . . . . . . Shielding Activations . | . . . . . . . . . . . . . . . . . Robots Disrupted . | . . . . . . . . . . . . . . . . . Combat Hostiles . | . . . . . . . . . . . . . . . . . Robots Corrupted . | . . . . . . . . . . . . . . . . . Combat Hostiles . | . . . . . . . . . . . . . . . . . Parts Fried . | . . . . . . . . . . . . . . . . . Impact Corruptions . | . . . . . . . . . . . . . . . . . Robots Melted . | . . . . . . . . . . . . . . . . . Combat Hostiles . | . . . . . . . . . . . . . . . . . Parts Melted . | . . . . . . . . . . . . . . . . . Heat Transferred 350 | . 350 . . . . . . . . . . . . . . . Parts Sabotaged . | . . . . . . . . . . . . . . . . . Parts Stolen . | . . . . . . . . . . . . . . . . . Parts Stripped . | . . . . . . . . . . . . . . . . . Power Chain Reactions . | . . . . . . . . . . . . . . . . . Alert | -11 -10 -10 -9 -9 -9 -9 -6 -5 -5 -5 -4 -4 -4 -3 -3 -3 ------- Run | Yrd Mat Min Mat Sto Rec Scr Fac Fac Upp Upp Fac Was Fac Res Qua Frg Maximum Alert Level 2 | . . . . . . . 1 1 . . . . 1 . . 2 Low Security (%) 96 | 100 100 100 100 100 100 . 77 90 . . 100 100 78 100 100 58 Level 1 3 | . . . . . . . 22 9 . . . . 21 . . 31 Level 2 . | . . . . . . . . . . . . . . . . 9 Level 3 . | . . . . . . . . . . . . . . . . . Level 4 . | . . . . . . . . . . . . . . . . . Level 5 . | . . . . . . . . . . . . . . . . . High Security . | . . . . . . . . . . . . . . . . . Max Security . | . . . . . . . . . . . . . . . . . Peak Influence 419 | . 90 84 70 150 88 . 256 242 . . 17 33 240 129 49 419 Initial 130 | . . . . . 48 . . 130 . . . 3 23 121 . 8 Average 50 | . 27 25 16 86 32 . 100 146 . . 4 12 80 83 23 157 Influence Increases 3804 | . 347 270 206 444 274 . 564 387 45 . 46 30 282 138 150 621 Destroy 0b10 Robot/C 840 | . 200 200 140 260 40 . . . . . . . . . . . Destroy 0b10 Robot/NC 55 | . 20 . . 5 . . 5 10 15 . . . . . . . Destroy Leader 224 | . 48 40 50 82 . . 2 2 . . . . . . . . Trap Triggered on 0b10 10 | . . . . . . . . . . . . . . . 10 . Successful Hack 211 | . 33 . 16 22 24 . 17 . . . 12 . 15 30 42 . Select Force Hacks 210 | . . . . . 210 . . . . . . . . . . . Disable Machine 105 | . . . . 60 . . . . . . . . . . 45 . Destroy Structure 49 | . 1 . . . . . . . . . 4 . 12 18 8 6 Partial Spotted 300 | . . . . 15 . . 90 60 . . 15 30 30 60 . . Lose Combat Pursuer 1800 | . 45 30 . . . . 450 315 30 . 15 . 225 30 45 615 Influence Decreases 3385 | . 347 270 206 319 399 . 298 486 212 . 37 6 83 370 135 217 Entered New Map 410 | . . . . . 77 . . 136 63 . . 6 10 111 . 7 Time Decay 2341 | . 347 270 196 309 302 . 188 110 149 . 14 . 63 198 105 90 Search Patrol Dispatched 100 | . . . . . . . 100 . . . . . . . . . Lost Part 366 | . . . 10 10 20 . 10 90 . . 15 . 10 51 30 120 Lost Ally 10 | . . . . . . . . . . . . . . 10 . . Purge Threat 158 | . . . . . . . . 150 . . 8 . . . . . Squads Dispatched 43 | . 1 . . 1 . . 12 5 . . 1 . 5 11 3 4 Investigation 28 | . . . . . . . 9 5 . . 1 . 4 5 1 3 Extermination 7 | . . . . . . . 2 . . . . . 1 2 1 1 Reinforcement 8 | . 1 . . 1 . . 1 . . . . . . 4 1 . Assault . | . . . . . . . . . . . . . . . . . Garrison . | . . . . . . . . . . . . . . . . . Intercept . | . . . . . . . . . . . . . . . . . Searches Triggered 1 | . . . . . . . 1 . . . . . . . . . Construction Impeded . | . . . . . . . . . . . . . . . . . Haulers Reinforced . | . . . . . . . . . . . . . . . . . Active Scanning Responses . | . . . . . . . . . . . . . . . . . Cargo Convoy Interrupts . | . . . . . . . . . . . . . . . . . Stealth | -11 -10 -10 -9 -9 -9 -9 -6 -5 -5 -5 -4 -4 -4 -3 -3 -3 --------- Run | Yrd Mat Min Mat Sto Rec Scr Fac Fac Upp Upp Fac Was Fac Res Qua Frg Distress Signals 11 | . 1 . . 2 . . 1 1 . . . . 1 2 2 1 Communications Jammed . | . . . . . . . . . . . . . . . . . Distress Signals . | . . . . . . . . . . . . . . . . . Times Spotted 267 | . 24 11 9 18 2 . 40 28 1 . 11 4 26 26 16 51 Peak Tracking Total 22 | . 3 3 4 4 1 . 12 12 2 . 10 4 14 8 7 22 Tactical Retreats 42 | . 3 1 . . . . 10 5 1 . 1 . 3 5 5 8 ECM-based Alert Blocks 18 | . . . . . . . . . . . . . . 8 10 . Traps | -11 -10 -10 -9 -9 -9 -9 -6 -5 -5 -5 -4 -4 -4 -3 -3 -3 ------- Run | Yrd Mat Min Mat Sto Rec Scr Fac Fac Upp Upp Fac Was Fac Res Qua Frg Traps Triggered 6 | . . . . 1 . . 1 2 . . 1 . . . . 1 Indirectly . | . . . . . . . . . . . . . . . . . Trap Hack Attempts . | . . . . . . . . . . . . . . . . . Triggered . | . . . . . . . . . . . . . . . . . Disarmed . | . . . . . . . . . . . . . . . . . Reprogrammed . | . . . . . . . . . . . . . . . . . Reused 1 | . . . . . . . . . . . . . . . 1 . Traps Extracted . | . . . . . . . . . . . . . . . . . Installed 1 | . . . . . . . . . . . . . . . 1 . Triggered 1 | . . . . . . . . . . . . . . . 1 . Most Traps Carried 1 | . . . . . . 1 1 1 1 1 1 1 1 1 1 . Machines | -11 -10 -10 -9 -9 -9 -9 -6 -5 -5 -5 -4 -4 -4 -3 -3 -3 ---------- Run | Yrd Mat Min Mat Sto Rec Scr Fac Fac Upp Upp Fac Was Fac Res Qua Frg Machines Disabled 7 | . . . . 4 . . . . . . . . . . 3 . Max in Single Turn 1 | . . . . 1 . . . . . . . . . . 1 . Garrison Access 1 | . . . . . . . . . . . 1 . . . . . Machines Repaired . | . . . . . . . . . . . . . . . . . Machines Dismantled . | . . . . . . . . . . . . . . . . . Machines Sabotaged . | . . . . . . . . . . . . . . . . . Overloaded Fab Kills . | . . . . . . . . . . . . . . . . . Hacking | -11 -10 -10 -9 -9 -9 -9 -6 -5 -5 -5 -4 -4 -4 -3 -3 -3 --------- Run | Yrd Mat Min Mat Sto Rec Scr Fac Fac Upp Upp Fac Was Fac Res Qua Frg Machines Accessed 97 | . 7 . 5 4 12 8 15 9 3 . 7 . 5 10 8 4 Terminals 44 | . 6 . 5 4 3 . 4 3 . . 5 . 1 5 7 1 Fabricators 2 | . . . . . . . 1 1 . . . . . . . . Repair Stations 3 | . 1 . . . . . . 1 . . . . 1 . . . Recycling Units 29 | . . . . . 7 . 8 4 . . 1 . 3 3 . 3 Scanalyzers 2 | . . . . . . . . . . . . . . 1 1 . Garrison Access 4 | . . . . . . . 2 . . . 1 . . 1 . . Total Hacks 265 | . 20 . 8 8 45 45 26 14 9 . 25 . 10 22 24 9 Successful 156 | . 12 . 4 4 38 45 10 6 9 . 9 . 6 8 5 . Failed 108 | . 7 . 4 4 7 . 16 8 . . 16 . 4 14 19 9 Catastrophic 31 | . . . 2 1 2 . 5 2 . . 1 . 2 6 6 4 Database Lockouts 1 | . 1 . . . . . . . . . . . . . . . Manual 110 | . 8 . 4 4 12 . 18 12 . . 13 . 5 11 14 9 Terminals 117 | . 18 . 8 8 11 . 10 6 . . 20 . 3 11 21 1 Fabricators 2 | . . . . . . . 1 1 . . . . . . . . Repair Stations 8 | . 2 . . . . . . 2 . . . . 4 . . . Recycling Units 46 | . . . . . 10 . 12 5 . . 1 . 3 7 . 8 Scanalyzers 5 | . . . . . . . . . . . . . . 2 3 . Garrison Access 9 | . . . . . . . 3 . . . 4 . . 2 . . Terminal Hacks 114 | . 9 . 3 4 28 45 3 1 9 . 6 . . 2 4 . Record 70 | . . . . . 24 38 . . 7 . . . . . 1 . Part Schematic 1 | . . . . . 1 . . . . . . . . . . . Robot Analysis 11 | . 5 . . . . 6 . . . . . . . . . . Open Door 3 | . . . . 1 . . . . 2 . . . . . . . Branch Access Points 4 | . . . 1 1 . . 1 . . . . . . . 1 . Machine Index 1 | . . . . . . . . . . . . . . . 1 . Recycling Unit Index 1 | . . . . . . . . . . . 1 . . . . . Unreport Threat 3 | . . . . . . . . 1 . . 2 . . . . . Locate Traps 8 | . 2 . . 1 1 . 1 . . . 1 . . 1 1 . Hauler Manifests 2 | . 1 . 1 . . . . . . . . . . . . . Registered Components 3 | . . . . . 1 . . . . . 1 . . 1 . . Zone Layout 6 | . 1 . 1 1 1 . 1 . . . 1 . . . . . Proto ID Catalog 1 | . . . . . . 1 . . . . . . . . . . Fabricator Hacks 1 | . . . . . . . . 1 . . . . . . . . Network Status 1 | . . . . . . . . 1 . . . . . . . . Repair Station Hacks 5 | . 2 . . . . . . . . . . . 3 . . . Scan Component 3 | . 1 . . . . . . . . . . . 2 . . . Repair 2 | . 1 . . . . . . . . . . . 1 . . . Recycling Unit Hacks 3 | . . . . . 2 . . . . . . . . 1 . . Report Inventory 3 | . . . . . 2 . . . . . . . . 1 . . Scanalyzer 2 | . . . . . . . . . . . . . . 1 1 . Retrieve Study 2 | . . . . . . . . . . . . . . 1 1 . Garrison Access Hacks 1 | . . . . . . . . . . . 1 . . . . . Seal Access 1 | . . . . . . . . . . . 1 . . . . . Unauthorized Hacks 30 | . 1 . 1 . 8 . 7 4 . . 2 . 3 4 . . Terminals 5 | . 1 . 1 . 1 . . . . . 1 . . 1 . . Assimilate 5 | . 1 . 1 . 1 . . . . . 1 . . 1 . . Fabricators . | . . . . . . . . . . . . . . . . . Repair Stations . | . . . . . . . . . . . . . . . . . Recycling Units 25 | . . . . . 7 . 7 4 . . 1 . 3 3 . . Tunnel 7 | . . . . . 7 . . . . . . . . . . . Fedlink 18 | . . . . . . . 7 4 . . 1 . 3 3 . . Scanalyzers . | . . . . . . . . . . . . . . . . . Garrison Access . | . . . . . . . . . . . . . . . . . Data Cores Recovered 1 | . . . . . . . . 1 . . . . . . . . Used . | . . . . . . . . . . . . . . . . . Hacking Detections 52 | . 7 . 3 3 3 . 9 4 . . 3 . 2 8 6 4 Full Trace Events 10 | . . . . . . . 2 1 . . . . 1 2 1 3 Feedback Events 2 | . . . . . . . . 1 . . . . . 1 . . Corruption 1 | . . . . . . . . 1 . . . . . . . . Hackware Fried 1 | . . . . . . . . . . . . . . 1 . . Feedback Blocked . | . . . . . . . . . . . . . . . . . Robot Schematics Acquired . | . . . . . . . . . . . . . . . . . Robots Built . | . . . . . . . . . . . . . . . . . Authchips . | . . . . . . . . . . . . . . . . . Time . | . . . . . . . . . . . . . . . . . Total Robot Build Rating . | . . . . . . . . . . . . . . . . . Part Schematics Acquired 1 | . . . . . 1 . . . . . . . . . . . Parts Built . | . . . . . . . . . . . . . . . . . Authchips . | . . . . . . . . . . . . . . . . . Time . | . . . . . . . . . . . . . . . . . Total Part Build Rating . | . . . . . . . . . . . . . . . . . Part Studies Acquired 2 | . . . . . . . . . . . . . . 1 1 . Parts Repaired 2 | . 1 . . . . . . . . . . . 1 . . . Time 42 | . 26 . . . . . . . . . . . 16 . . . Parts Recycled . | . . . . . . . . . . . . . . . . . Recycled Matter . | . . . . . . . . . . . . . . . . . Retrieved Matter . | . . . . . . . . . . . . . . . . . Retrieved Components . | . . . . . . . . . . . . . . . . . Parts Scanalyzed . | . . . . . . . . . . . . . . . . . Part Schematics Acquired . | . . . . . . . . . . . . . . . . . Parts Damaged . | . . . . . . . . . . . . . . . . . Bothacking | -11 -10 -10 -9 -9 -9 -9 -6 -5 -5 -5 -4 -4 -4 -3 -3 -3 ------------ Run | Yrd Mat Min Mat Sto Rec Scr Fac Fac Upp Upp Fac Was Fac Res Qua Frg Used RIF Installer . | . . . . . . . . . . . . . . . . . Robots Hacked . | . . . . . . . . . . . . . . . . . Non-combat . | . . . . . . . . . . . . . . . . . Combat . | . . . . . . . . . . . . . . . . . Robot Hacks Applied . | . . . . . . . . . . . . . . . . . Relay Couplers Released . | . . . . . . . . . . . . . . . . . Fabnet Peak Effective % . | . . . . . . . . . . . . . . . . . Robots Rewired . | . . . . . . . . . . . . . . . . . Allies Hacked . | . . . . . . . . . . . . . . . . . Hacks Repelled . | . . . . . . . . . . . . . . . . . Allies | -11 -10 -10 -9 -9 -9 -9 -6 -5 -5 -5 -4 -4 -4 -3 -3 -3 -------- Run | Yrd Mat Min Mat Sto Rec Scr Fac Fac Upp Upp Fac Was Fac Res Qua Frg Total Allies 3 | . . . . . . . . . . . 1 1 . 1 . . Largest Group 1 | . . . . . . . . . . . 1 1 . 1 . . Highest-Rated Group 46 | . . . . . . . . . . . 10 46 . 26 . . Highest-Rated Ally 46 | . . . . . . . . . . . 10 46 . 26 . . Initial UFD Resources 109 | . . . . . . . 22 49 67 67 71 81 81 93 109 109 Total Orders . | . . . . . . . . . . . . . . . . . Ally Attacks . | . . . . . . . . . . . . . . . . . Total Damage . | . . . . . . . . . . . . . . . . . Kills . | . . . . . . . . . . . . . . . . . Allies Corrupted . | . . . . . . . . . . . . . . . . . Allies Melted . | . . . . . . . . . . . . . . . . . Intel | -11 -10 -10 -9 -9 -9 -9 -6 -5 -5 -5 -4 -4 -4 -3 -3 -3 ------- Run | Yrd Mat Min Mat Sto Rec Scr Fac Fac Upp Upp Fac Was Fac Res Qua Frg Active Infowar (turns) 7411 | . 534 1009 813 747 898 2276 502 204 . . . . 28 296 104 . Sensors 1869 | . . . 790 625 . . 133 204 . . . . 28 89 . . Terrain 6977 | . 534 1009 813 747 898 2276 502 198 . . . . . . . . Cloaking 382 | . . . . . . . . . . . . . . 283 99 . Jamming 119 | . . . . . . . . . . . . . . 119 . . ECM 211 | . . . . . . . . . . . . . . 107 104 . Robot Analysis Total 11 | . 5 . . . . 6 . . . . . . . . . . Derelict Logs Recovered 4 | . . 1 . . . . . . 2 1 . . . . . . Drone Launches . | . . . . . . . . . . . . . . . . . Drone Recoveries . | . . . . . . . . . . . . . . . . . Exploration | -11 -10 -10 -9 -9 -9 -9 -6 -5 -5 -5 -4 -4 -4 -3 -3 -3 ------------- Run | Yrd Mat Min Mat Sto Rec Scr Fac Fac Upp Upp Fac Was Fac Res Qua Frg Turns Passed 9274 | 35 1219 1009 813 747 898 2276 502 227 367 24 115 13 143 433 249 204 Spaces Moved 10978 | 46 619 573 433 316 512 1324 1682 740 1083 83 390 92 503 1509 519 554 Core 210 | 46 52 . . . . . . . . . . . . . . 112 Treads 3725 | . 567 573 433 316 512 1324 . . . . . . . . . . Legs . | . . . . . . . . . . . . . . . . . Wheels . | . . . . . . . . . . . . . . . . . Hover . | . . . . . . . . . . . . . . . . . Flight 7043 | . . . . . . . 1682 740 1083 83 390 92 503 1509 519 442 Fastest Speed 7 | 50 50 160 160 160 160 160 23 20 29 29 20 7 15 19 25 28 Average Speed 71 | 50 150 160 160 160 160 160 24 24 29 29 23 13 20 20 26 34 Slowest Speed 240 | 50 160 160 160 240 160 160 28 37 37 29 34 14 22 99 28 150 Overloaded Moves 338 | . . . . . . . . 15 . . . 92 3 228 . . Propulsion Burnouts . | . . . . . . . . . . . . . . . . . Robots Hopped 53 | . . . . . . . 10 12 . . 2 . 3 20 1 5 Potential Cave-ins 7 | . . . . . . . . . . . . . . 7 . . Cave-ins Triggered 1 | . . . . . . . . . . . . . . 1 . . Exploration Rate (%) 54 | 4 95 98 22 67 99 91 55 27 98 8 12 82 18 40 70 38 Regions Visited 16 Branch Regions 8 Pre-discovered Areas 10 | . . 1 . . 7 . 1 . 1 . . . . . . . Known Exits Taken 4 | . . . 1 1 . . . . . 1 . . 1 . . . Unknown Exits Taken 10 | 1 1 1 . . 1 1 1 1 1 . . . . 1 1 . Scrap Searched 10 | . . 1 . . . 4 . . 4 1 . . . . . . Spaces Dug 31 | . . . . . . . . . . . 2 . 6 16 4 3 Terrain Destroyed 31 | . . . . . . . . . . . 2 . 6 16 4 3 Melee 31 | . . . . . . . . . . . 2 . 6 16 4 3 Projectile . | . . . . . . . . . . . . . . . . . AOE . | . . . . . . . . . . . . . . . . . Terrain Rammed . | . . . . . . . . . . . . . . . . . Walls Destroyed . | . . . . . . . . . . . . . . . . . Machines Disabled . | . . . . . . . . . . . . . . . . . Actions | -11 -10 -10 -9 -9 -9 -9 -6 -5 -5 -5 -4 -4 -4 -3 -3 -3 --------- Run | Yrd Mat Min Mat Sto Rec Scr Fac Fac Upp Upp Fac Was Fac Res Qua Frg Total 12010 | 57 807 628 519 475 557 1486 1748 760 1119 82 407 91 532 1573 615 554 Wait 572 | . 113 32 42 79 23 131 14 3 10 . 8 . 17 22 76 2 Move 10862 | 45 618 572 432 315 511 1323 1661 717 1082 82 386 91 496 1470 516 545 Hop 48 | . . . . . . . 10 11 . . 2 . 3 17 1 4 Pick Up 82 | 8 16 2 11 4 1 12 8 3 5 . 2 . 2 3 5 . Fast Attach 38 | . . . . 2 . 1 7 3 4 . 3 . 3 15 . . Attach 44 | 4 5 . 3 . 2 . 11 5 1 . 2 . 1 5 5 . Detach 5 | . . . . . . . . 2 . . . . 1 2 . . Swap 40 | . 3 1 3 11 2 6 7 1 2 . . . . 4 . . Drop 89 | . 3 2 8 9 1 13 23 5 2 . 1 . 3 17 2 . Fire 153 | . 49 19 20 48 17 . . . . . . . . . . . Melee 63 | . . . . 7 . . 7 5 6 . 3 . 6 17 9 3 Ram . | . . . . . . . . . . . . . . . . . Kick . | . . . . . . . . . . . . . . . . . Crush . | . . . . . . . . . . . . . . . . . Escape Stasis 6 | . . . . . . . . 5 . . . . . 1 . . Rewire 7 | . . . . . . . . . 7 . . . . . . . Trap 1 | . . . . . . . . . . . . . . . 1 . Miscellaneous . | . . . . . . . . . . . . . . . . . Route ------- -11/Scrapyard -10/Materials (discovered 5 exits: *Mat x3 / [*Min x2]) -10/Mines (discovered 2 exits: *Mat x2) -9/Materials (discovered 3 exits: Mat / Min / *Sto) -9/Storage -9/Recycling (discovered 2 exits: [*Fac] / *Scr) -9/Scraptown (discovered 2 exits: *Fac x2) -6/Factory (discovered 3 exits: *Fac / *Low x2) -5/Factory (discovered 2 exits: *Fac / *Upp) -5/Upper Caves -5/Upper Caves -4/Factory (discovered 2 exits: Res / Upp) -4/Waste -4/Factory -3/Research (discovered 2 exits: [*Res] / *Qua) -3/Quarantine (discovered 3 exits: [*Res] / [*Sec] / *Frg) -3/Protoforge History --------- Turn | Location | Event 15 | -11/Scrapyard | Discovered new exit (range 16) 36 | -11/Scrapyard | Entered Materials 186 | -10/Materials | Discovered new exit (range 13) 323 | -10/Materials | Build established: Mutant 532 | -10/Materials | Discovered new exit (range 16) 589 | -10/Materials | Discovered new exit (range 16) 819 | -10/Materials | Discovered new exit (range 13) 915 | -10/Materials | Central database locked down 992 | -10/Materials | Discovered new exit (range 9) 1219 | -10/Materials | Repaired Lgt. Treads 1255 | -10/Materials | Entered Mines 1557 | -10/Mines | Discovered new exit (range 8) 1668 | -10/Mines | Learned 2 Materials zone layouts 1744 | -10/Mines | Learned location of Storage (-9) 1915 | -10/Mines | Discovered new exit (range 8) 2264 | -10/Mines | Entered Materials 2264 | -9/Materials | Evolved 2 slots: Propulsion x1, Utility x1 2265 | -9/Materials | Identified exit to Materials 2718 | -9/Materials | Discovered new exit (range 10) 2850 | -9/Materials | Identified exit to Mines 2850 | -9/Materials | Identified exit to Storage 3077 | -9/Materials | Entered Storage 3416 | -9/Storage | Identified exit to Recycling 3696 | -9/Storage | Core integrity fell below 50% 3818 | -9/Storage | Used back door to open Recycling access 3824 | -9/Storage | Entered Recycling 3906 | -9/Recycling | Scanned before Scraplab entrance 4461 | -9/Recycling | Discovered new exit (range 8) 4701 | -9/Recycling | Entered Scraplab 4720 | -9/Recycling | Discovered new exit (range 2) 4722 | -9/Recycling | Entered Scraptown 5073 | -9/Scraptown | Discovered new exit (range 5) 5184 | -9/Scraptown | Visited Scrapoid Research Area 5230 | -9/Scraptown | Visited Junk Repository 5517 | -9/Scraptown | Visited Supply Room 5611 | -9/Scraptown | Visited Symbiants 5673 | -9/Scraptown | Visited The Evicted 5745 | -9/Scraptown | Visited Cyclists 5787 | -9/Scraptown | Visited UFD Registry 5787 | -9/Scraptown | Registered with UFD as "Kinetirunner" 5817 | -9/Scraptown | Entered Cyclist Reading Room 5891 | -9/Scraptown | Visited DA-N13 Charitable Foundation 5905 | -9/Scraptown | Found DCF Scrap (31 items) 5963 | -9/Scraptown | Visited Chapter 10 6209 | -9/Scraptown | Visited Botcube Research 6240 | -9/Scraptown | Visited Scrap Suit Storage 6293 | -9/Scraptown | Visited Analyses Database 6329 | -9/Scraptown | Visited Science Guys 6393 | -9/Scraptown | Visited Derelict Rescue Squad 6411 | -9/Scraptown | Found DRS Beacon 6446 | -9/Scraptown | Visited Research Penetration Think Tank 6494 | -9/Scraptown | Visited Curators Association 6593 | -9/Scraptown | Visited Shadow of the Wyrm 6913 | -9/Scraptown | Met Optimus 6913 | -9/Scraptown | Accepted into 0bPrime 6995 | -9/Scraptown | Discovered new exit (range 3) 6998 | -9/Scraptown | Entered Factory 6998 | -6/Factory | Evolved 6 slots: Power x1, Propulsion x2, Utility x3 7073 | -6/Factory | Loaded intel: 8 recycling unit locations 7083 | -6/Factory | Discovered new exit (range 11) 7151 | -6/Factory | Learned location of Protoforge (-3) 7297 | -6/Factory | Build established: Sprinter 7348 | -6/Factory | Search patrols dispatched 7478 | -6/Factory | Identified exit to Lower Caves 7496 | -6/Factory | Discovered new exit (range 15) 7500 | -6/Factory | Entered another Factory area 7500 | -5/Factory | Evolved 2 slots: Propulsion x1, Utility x1 7631 | -5/Factory | Loaded intel: 8 recycling unit locations 7654 | -5/Factory | Discovered new exit (range 5) 7720 | -5/Factory | Discovered new exit (range 16) 7727 | -5/Factory | Entered Upper Caves 7754 | -5/Upper Caves | Lost 9 parts (2p3n4u) 7837 | -5/Upper Caves | Encountered a Warlord checkpoint 7856 | -5/Upper Caves | Entered an active Warlord outpost 7863 | -5/Upper Caves | Learned Factory emergency access door positions 7863 | -5/Upper Caves | Learned Research garrison access intel 7863 | -5/Upper Caves | Learned Factory garrison access intel 7863 | -5/Upper Caves | Learned Armory garrison access intel 7904 | -5/Upper Caves | Learned Factory terminal intel 7931 | -5/Upper Caves | Discovered new exit (range 13) 7933 | -5/Upper Caves | Learned 4 Factory zone layouts 8094 | -5/Upper Caves | Entered another Upper Caves area 8098 | -5/Upper Caves | Identified exit to Factory 8118 | -5/Upper Caves | Entered Factory 8118 | -4/Factory | Evolved 2 slots: Propulsion x1, Weapon x1 8119 | -4/Factory | Identified exit to Research 8119 | -4/Factory | Identified exit to Upper Caves 8121 | -4/Factory | Loaded intel: 26 terminal locations 8122 | -4/Factory | Loaded intel: 4 garrison access locations 8147 | -4/Factory | Spotted B-86 Titan 8204 | -4/Factory | Build established: Hacker-Sprinter 8209 | -4/Factory | Loaded intel: 8 recycling unit locations 8233 | -4/Factory | Sucked down chute 8233 | -4/Factory | Entered Waste 8234 | -4/Waste | Met a frightened Derelict 8234 | -4/Waste | Spotted C-40 Crusher 8237 | -4/Waste | Spotted C-40 Crusher 8238 | -4/Waste | Spotted C-40 Crusher 8239 | -4/Waste | Spotted C-40 Crusher 8244 | -4/Waste | Discovered new exit (range 10) 8244 | -4/Waste | Spotted C-40 Crusher 8244 | -4/Waste | Spotted C-40 Crusher 8246 | -4/Waste | Entered Factory 8304 | -4/Factory | Repaired Imp. Surge Thruster 8317 | -4/Factory | Loaded intel: 8 recycling unit locations 8376 | -4/Factory | Discovered exit to Research (range 16) 8389 | -4/Factory | Entered Research 8389 | -3/Research | Evolved 2 slots: Propulsion x1, Utility x1 8390 | -3/Research | Loaded intel: 3 garrison access locations 8497 | -3/Research | Loaded intel: 5 recycling unit locations 8506 | -3/Research | Adv. System Shield fried by hacking feedback 8609 | -3/Research | Spotted B-86 Titan 8639 | -3/Research | Discovered new exit (range 6) 8735 | -3/Research | Crushed by falling debris 8754 | -3/Research | System corruption reached 10% 8781 | -3/Research | Lost 4 parts (1p2n1u) 8819 | -3/Research | Discovered new exit (range 16) 8822 | -3/Research | Entered Quarantine 8838 | -3/Quarantine | Found Alien Impact Weapon 8869 | -3/Quarantine | Found Alien Artifact 8870 | -3/Quarantine | Identified Terrabomb 8870 | -3/Quarantine | Used Terrabomb 8879 | -3/Quarantine | Lost 4 parts (3n1u) 8894 | -3/Quarantine | Identified Core Stripper 8901 | -3/Quarantine | Discovered new exit (range 16) 8969 | -3/Quarantine | Found Alien Artifact 8970 | -3/Quarantine | Identified Subatomic Replicator 8977 | -3/Quarantine | Spotted Fortress 9000 | -3/Quarantine | Discovered new exit (range 5) 9000 | -3/Quarantine | Discovered new exit (range 6) 9013 | -3/Quarantine | Lost 3 parts (1p1n1u) 9071 | -3/Quarantine | Entered Protoforge 9096 | -3/Protoforge | Spotted B-86 Titan 9111 | -3/Protoforge | Superfortress began startup sequence 9134 | -3/Protoforge | Spotted Hotshot 9134 | -3/Protoforge | Spotted AP7-3 9134 | -3/Protoforge | Spotted Hotshot 9134 | -3/Protoforge | Spotted Hotshot 9134 | -3/Protoforge | Spotted Hotshot 9134 | -3/Protoforge | Spotted AP7-3 9143 | -3/Protoforge | Spotted Overlord 9150 | -3/Protoforge | Spotted Decapitator 9150 | -3/Protoforge | Spotted Decapitator 9174 | -3/Protoforge | Lost 4 parts (1p1n1u1w) 9177 | -3/Protoforge | Spotted EXE-6 9177 | -3/Protoforge | Spotted EXE-6 9219 | -3/Protoforge | Core integrity fell below 50% 9250 | -3/Protoforge | Lost 7 parts (4n2u1w) 9251 | -3/Protoforge | Core integrity fell below 20% 9260 | -3/Protoforge | Spotted Decapitator 9260 | -3/Protoforge | Spotted Decapitator 9270 | -3/Protoforge | Spotted Immortal 9271 | -3/Protoforge | Spotted Immortal 9275 | -3/Protoforge | Destroyed by Y-72 Warden with Quantum Rifle Last Messages --------------- 09219_ Penetrated by Railslug. 09219_ Cloaking Device destroyed. 09219_ Knocked back. 09219_ Penetrated by Railslug. 09219_ Impulse Thruster Array destroyed. 09219_ Acquired 9 matter. 09231_ System corrupted: Matter fused (-10). 09247_ Penetrated by Slug. 09250_ Slug penetrates Reinforced Barrier. 09251_ Penetrated by Slug. 09251_ Slug penetrates Reinforced Barrier. 09253_ ALERT: Potential suspicious activity detected, Programmers report to Protoforge Zone 5V. 09254_ Adv. System Shield destroyed. 09259_ Penetrated by Slug. 09259_ Triggered Segregator Trap. 09259_ Arcs of energy rise from the floor. 09263_ System corrupted: Matter fused (-5). 09273_ Penetrated by Slug. 09273_ Slug penetrates Reinforced Barrier. Map ----- +----------------------------------------------------+ | ?????????????????????????????????????????????????? | | ?????????????????????????????????????????????????? | | ?????????????????????????????????????????????????? | | ?????????????????????????????????????????????????? | | ?????????????????????????????????????????????????? | | ?????????????????????????????????????????????????? | | ?????????????????????????????????????????????????? | | ?????????????????????????????????????????????????? | | ?????????????????????????????????????????????????? | | ?????????????????????????????????????????????????? | | ?????????????????????????????????????????????????? | | ?????????????????????????????????????????????????? | | ?????????????????????????????????????????????????? | | ?????????????????????????????????????????????????? | | ?????????????????????????????????????????????????? | | ?????????????????????????????????????????????????? | | ?????????????????????????????????????????????????? | | ?????????????????????????????????????????????????? | | ?????????????????????????????????????????????????? | | ?????????????????????????????????????????????????? | | ?????????????????????????????????????????????????? | | ?????????????????????????????????????????????????? | | ???????????###################???????????????????? | | ?????????? ##??????????????????? | | ?????????? Y#??????????????????? | | ?????????? @ #??????????????????? | | ?????????????????######### Y##??????????????????? | | ?????????????????????????# #???????????????????? | | ?????????????????????????# #???????????????????? | | ?????????????????????????# #???????????????????? | | ?????????????????????????# #???????????????????? | | ?????????????????????????# ############????????? | | ?????????????????????????# ?????? | | ?????????????????????????# ?????? | | ?????????????????????????# #########//#????????? | | ?????????????????????????# #???????????????????? | | ?????????????????????????# #???????????????????? | | ?????????????????????????# #???????????????????? | | ?????????????????????????# #???????????????????? | | ?????????????????????????# #???????????????????? | | ?????????????????????????# #???????????????????? | | ?????????????????????????# #???????????????????? | | ?????????????????????????# #???????????????????? | | ?????????????????????????# #???????????????????? | | ?????????????????????????# #???????????????????? | | ?????????????????????????# #???????????????????? | | ?????????????????????????# #???????????????????? | | ?????????????????????????# #???????????????????? | | ?????????????????????????# #???????????????????? | | ?????????????????????????# #???????????????????? | +----------------------------------------------------+ Best States ------------- Heat Dissipation 108 Energy Generation 41 Energy Capacity 565 Matter Stores 300 Matter Capacity 300 Sight Range 16 Robot Scan Range 18 Terrain Scan Range 14 Terrain Scan Density 210 ECM Strength 2 Jamming Range 14 Cloak Strength 2 Armor Coverage 225 Core Shielding 40 Point Defense Rating 240 Evasion (%) 75 Melee Accuracy 5 Recoil Reduction 3 Offensive Hacking 24 Defensive Hacking 14 Item Schematics ----------------- Imp. Propulsion Shielding | -9/Recycling | Hacked Robot Schematics ------------------ None Fabricated ------------ Nothing Repaired ---------- Lgt. Treads | 57% | -10/Materials Imp. Surge Thruster | 18% | -4/Factory Studied --------- Field Propulsion Array | -3/Research | Hacked Q-thruster | -3/Quarantine | Hacked Alien Tech Used ----------------- Terrabomb Core Stripper Subatomic Replicator Achievements -------------- Hulk Smash Super-what Now? Challenges ------------ None Game ------ Seed InterdictionFlightBlade Manual? 0 Play Time 01:54:51 Cumulative 227.7 hours Start 2026.09.19 @ 15:36:03 End 2026.09.19 @ 17:35:06 Sessions 1 Manual Loads 0 Difficulty Rogue Special Mode None Game No. 357 Rogue 354 Adventurer 3 Explorer 0 Win Type - Total 2 Types 2/0/0/0/0/0/0/0/0/0 Lore% 68 Gallery% 58 Achievement% 34 Wizard Run 0 Options --------- Layout 0 ASCII 0 Keyboard 0 Movement Mouse Keybinds 0 Fullscreen 2 Font 18/SmallcapsGlow Map View 76x50 Zoom Use 0% Tactical HUD 1 Map Filters NONE Filters NONE Steam 1 RUN: d49d2506-4dcc-49ef-b0f0-42037c661f10